fUSD/lending_fUSD_20251102
["ID","MTS","AMOUNT","RATE_DAILY","PERIOD"]
[392876288,1762104631831,-380.28166925,0.00014899,2]
[392876289,1762104631841,-500.14477682,0.00014899,2]
[392876290,1762104631851,-500.0,0.00014899,2]
[392876291,1762104631860,-500.0,0.00014899,2]
[392876292,1762104631870,-500.0,0.00014899,2]
[392876293,1762104631879,-500.0,0.00014899,2]
[392876294,1762104631888,-500.0,0.00014899,2]
[392876295,1762104631898,-500.0,0.00014899,2]
[392876297,1762104631907,-500.0,0.00014899,2]
[392876299,1762104631916,-500.0,0.00014899,2]
[392876300,1762104631926,-500.0,0.00014899,2]
[392876301,1762104631935,-500.0,0.00014899,2]
[392876302,1762104631946,-500.0,0.00014899,2]
[392876303,1762104631956,-500.0,0.00014899,2]
[392876305,1762104631972,-500.0,0.00014899,2]
[392876306,1762104631982,-500.0,0.00014899,2]
[392876307,1762104631992,-500.0,0.00014899,2]
[392876308,1762104632001,-500.0,0.00014899,2]
[392876309,1762104632010,-500.0,0.00014899,2]
[392876311,1762104632020,-500.0,0.00014899,2]
[392876312,1762104632029,-500.0,0.00014899,2]
[392876313,1762104632040,-364.31347229,0.00014899,2]
[392876314,1762104632050,-500.0,0.00014899,2]
[392876315,1762104632060,-166.66,0.000149,2]
[392876316,1762104632070,-261.31893075,0.000149,2]
[392876317,1762104632080,-25247.56906836,0.000149,2]
[392876318,1762104632091,-7782.42607065,0.000149,2]
[392876319,1762104632122,-874.87406304,0.000149,2]
[392876324,1762104637498,-372.19482613,0.000149,2]
[392876325,1762104637508,-159.75277179,0.000149,2]
[392876326,1762104637518,-194.06487377,0.000149,2]
[392876327,1762104637528,-189.58520708,0.000149,2]
[392876328,1762104637539,-760.34869064,0.000149,2]
[392876329,1762104637549,-477.45087779,0.00014952,2]
[392876330,1762104637558,-151.0,0.00014959,2]
[392876331,1762104637568,-151.0,0.00014966,2]
[392876332,1762104637578,-151.0,0.0001497,2]
[392876333,1762104637588,-151.0,0.00014971,2]
[392876334,1762104637598,-500.0,0.00014973,2]
[392876335,1762104637607,-500.0,0.00014973,2]
[392876336,1762104637617,-500.0,0.00014973,2]
[392876337,1762104637627,-500.0,0.00014973,2]
[392876338,1762104637636,-500.0,0.00014973,2]
[392876339,1762104637646,-500.0,0.00014973,2]
[392876340,1762104637657,-500.0,0.00014973,2]
[392876341,1762104637667,-500.0,0.00014973,2]
[392876342,1762104637676,-500.0,0.00014973,2]
[392876343,1762104637685,-500.0,0.00014973,2]
[392876344,1762104637695,-2829.1717033,0.00014984,2]
[392876345,1762104637705,-154.9064396,0.00014984,2]
[392876346,1762104637715,-151.0,0.00014991,2]
[392876347,1762104637724,-322.6107,0.00014991,2]
[392876348,1762104637734,-151.0,0.00014991,2]
[392876349,1762104637743,-151.0,0.00014991,2]
[392876350,1762104637753,-151.0,0.00014991,2]
[392876351,1762104637762,-466.41528664,0.00014991,2]
[392876352,1762104637772,-151.0,0.00014991,2]
[392876354,1762104637782,-496.47127164,0.00014991,2]
[392876356,1762104637791,-151.0,0.00014991,2]
[392876358,1762104637801,-151.0,0.00014991,2]
[392876359,1762104637811,-151.0,0.00014991,2]
[392876360,1762104637821,-250.0,0.00014991,2]
[392876361,1762104637831,-151.0,0.00014991,2]
[392876363,1762104637841,-500.0,0.00014991,2]
[392876365,1762104637850,-250.0,0.00014991,2]
[392876367,1762104637860,-151.0,0.00014991,2]
[392876369,1762104637870,-151.0,0.00014991,2]
[392876371,1762104637880,-250.0,0.00014991,2]
[392876373,1762104637891,-151.0,0.00014991,2]
[392876375,1762104637900,-250.0,0.00014991,2]
[392876377,1762104637914,-151.0,0.00014991,2]
[392876379,1762104637924,-153.79578297,0.00014991,2]
[392876382,1762104637934,-151.0,0.00014991,2]
[392876383,1762104637944,-151.0,0.00014991,2]
[392876385,1762104637953,-151.0,0.00014991,2]
[392876387,1762104637964,-151.0,0.00014991,2]
[392876390,1762104637975,-151.0,0.00014991,2]
[392876392,1762104637985,-151.0,0.00014991,2]
[392876393,1762104637995,-151.0,0.00014991,2]
[392876396,1762104638004,-200.0,0.00014991,2]
[392876398,1762104638014,-151.0,0.00014991,2]
[392876399,1762104638023,-151.0,0.00014991,2]
[392876401,1762104638034,-151.0,0.00014991,2]
[392876404,1762104638044,-151.0,0.00014991,2]
[392876406,1762104638053,-151.0,0.00014991,2]
[392876408,1762104638063,-151.0,0.00014991,2]
[392876409,1762104638072,-151.0,0.00014991,2]
[392876411,1762104638081,-151.0,0.00014991,2]
[392876413,1762104638090,-151.0,0.00014991,2]
[392876415,1762104638100,-151.0,0.00014991,2]
[392876418,1762104638112,-151.0,0.00014991,2]
[392876420,1762104638123,-151.0,0.00014991,2]
[392876422,1762104638132,-620.0,0.00014991,2]
[392876424,1762104638141,-151.0,0.00014991,2]
[392876425,1762104638152,-151.0,0.00014991,2]
[392876427,1762104638162,-151.0,0.00014991,2]
[392876429,1762104638171,-151.0,0.00014991,2]
[392876432,1762104638181,-151.0,0.00014991,2]
[392876434,1762104638194,-151.0,0.00014991,2]
[392876436,1762104638204,-500.0,0.00014991,2]
[392876438,1762104638213,-151.0,0.00014991,2]
[392876440,1762104638223,-200.0,0.00014991,2]
[392876441,1762104638232,-500.0,0.00014991,2]
[392876443,1762104638241,-151.0,0.00014991,2]
[392876445,1762104638251,-151.0,0.00014991,2]
[392876448,1762104638260,-500.0,0.00014991,2]
[392876450,1762104638270,-151.0,0.00014991,2]
[392876451,1762104638279,-151.0,0.00014991,2]
[392876454,1762104638289,-337.22623762,0.00014991,2]
[392876456,1762104638299,-151.0,0.00014991,2]
[392876457,1762104638309,-151.0,0.00014991,2]
[392876459,1762104638318,-151.0,0.00014991,2]
[392876461,1762104638328,-151.0,0.00014991,2]
[392876463,1762104638337,-151.0,0.00014991,2]
[392876466,1762104638348,-151.0,0.00014991,2]
[392876467,1762104638358,-151.0,0.00014991,2]
[392876469,1762104638368,-151.0,0.00014991,2]
[392876471,1762104638378,-151.0,0.00014991,2]
[392876473,1762104638388,-239.84119403,0.00014991,2]
[392876476,1762104638398,-151.0,0.00014991,2]
[392876478,1762104638411,-151.0,0.00014991,2]
[392876479,1762104638421,-151.0,0.00014991,2]
[392876481,1762104638430,-151.0,0.00014991,2]
[392876483,1762104638440,-210.19144222,0.00014991,2]
[392876485,1762104638449,-147421.69553821,0.00014996,2]
[392876529,1762104638959,-2930.4,0.00014996,2]
[392876532,1762104638979,-23444.71535839,0.00014996,2]
[392876534,1762104638990,-500.0,0.00014998,2]
[392876536,1762104639001,-500.0,0.00014998,2]
[392876538,1762104639010,-152.0,0.00014999,2]
[392876540,1762104639020,-153.54960491,0.00014999,2]
[392876542,1762104639031,-152.0,0.00014999,2]
[392876544,1762104639040,-152.0,0.00014999,2]
[392876546,1762104639050,-152.0,0.00014999,2]
[392876548,1762104639059,-291.27921974,0.00014999,2]
[392876550,1762104639068,-500.0,0.00014999,2]
[392876552,1762104639077,-500.0,0.00014999,2]
[392876554,1762104639087,-500.0,0.00014999,2]
[392876556,1762104639097,-500.0,0.00014999,2]
[392876558,1762104639106,-500.0,0.00014999,2]
[392876560,1762104639119,-500.0,0.00014999,2]
[392876562,1762104639129,-500.0,0.00014999,2]
[392876564,1762104639138,-500.0,0.00014999,2]
[392876566,1762104639145,-500.0,0.00014999,2]
[392876567,1762104639153,-500.0,0.00014999,2]
[392876570,1762104639163,-500.0,0.00014999,2]
[392876572,1762104639172,-500.0,0.00014999,2]
[392876574,1762104639183,-500.0,0.00014999,2]
[392876576,1762104639192,-500.0,0.00014999,2]
[392876577,1762104639201,-500.0,0.00014999,2]
[392876579,1762104639211,-500.0,0.00014999,2]
[392876581,1762104639222,-500.0,0.00014999,2]
[392876583,1762104639230,-500.0,0.00014999,2]
[392876585,1762104639240,-500.0,0.00014999,2]
[392876587,1762104639249,-820.0,0.00015,2]
[392876589,1762104639258,-3420.0,0.00015,2]
[392876591,1762104639267,-573.0,0.00015,2]
[392876593,1762104639276,-628.011,0.00015,2]
[392876595,1762104639285,-6468.0,0.00015,2]
[392876597,1762104639293,-559.0,0.00015,2]
[392876599,1762104639303,-905.0,0.00015,2]
[392876601,1762104639312,-1187.0,0.00015,2]
[392876603,1762104639321,-3470.09295062,0.00015,2]
[392876614,1762104639409,-3181.90704938,0.00015,2]
[392876616,1762104639419,-2140.0,0.00015,2]
[392876618,1762104639428,-1594.0,0.00015,2]
[392876620,1762104639437,-1441.099,0.00015,2]
[392876622,1762104639446,-880.89174029,0.00015,2]
[392876636,1762104639542,-908.02971522,0.00015,2]
[392876647,1762104639603,-499.29282071,0.00015,2]
[392876651,1762104639630,-36981.36548247,0.00015,2]
[392876654,1762104639641,-11759.84680329,0.00015,2]
[392876656,1762104639653,-4374.25187518,0.00015,2]
[392876695,1762104640087,-1105.88736,0.00015,2]
[392876697,1762104640098,-3269.59292708,0.00015,2]
[392876729,1762104640369,-581.63690954,0.00015,2]
[392876731,1762104640381,-7117.99694944,0.00015,2]
[392876733,1762104640392,-9872.25120055,0.00015,2]
[392876735,1762104640403,-2705.9,0.00015,2]
[392876741,1762104640442,-1542.46306697,0.00015,2]
[392876784,1762104640847,-2139.59977749,0.00015,2]
[392876786,1762104640859,-9769.82143333,0.00015,2]
[392876791,1762104640898,200.0,0.00014097,2]
[392876871,1762104642655,-44102.8356912,0.00015,2]
[392876872,1762104642698,-582.78190383,0.00015,2]
[392876873,1762104642857,-1810.12951189,0.00015,2]
[392876874,1762104642868,-1404.13,0.00015,2]
[392876888,1762104645618,-1527.89999996,0.00015,2]
[392876894,1762104645671,-3578.22114359,0.00015,2]
[392876895,1762104646143,-610.85355698,0.00015,2]
[392876896,1762104646185,-1498.40894396,0.00015,2]
[392876897,1762104646268,-182.53178878,0.00015,2]
[392876966,1762104648102,-865.19250344,0.00015,2]
[392876967,1762104648113,-7860.805984,0.00015,2]
[392876968,1762104648257,-1822.11724802,0.00015,2]
[392876981,1762104671617,2754.07,7.361e-05,2]
[392876982,1762104671869,2754.07,7.749e-05,2]
[392876983,1762104672081,2754.07,8.136e-05,2]
[392876984,1762104672315,2754.07,8.524e-05,2]
[392876985,1762104672520,1692.38273463,8.911e-05,2]
[392876986,1762104672541,1061.68726537,8.911e-05,2]
[392876987,1762104672738,2754.07,9.299e-05,2]
[392876989,1762104673012,2754.07,9.686e-05,2]
[392876990,1762104673233,2754.07,0.00010074,2]
[392876991,1762104673429,2754.07,0.00010461,2]
[392876992,1762104673644,2754.07,0.00010849,2]
[392876993,1762104673894,167.96273463,0.00011236,2]
[392876994,1762104673915,2586.10726537,0.00011236,2]
[392876995,1762104674112,2754.07,0.00011623,2]
[392876996,1762104674365,2754.07,0.00012011,2]
[392876997,1762104674582,2754.07,0.00012398,2]
[392876998,1762104674798,2754.07,0.00012786,2]
[392876999,1762104675016,1397.61273463,0.00013173,2]
[392877000,1762104675038,1356.45726537,0.00013173,2]
[392877001,1762104675249,2754.07,0.00013561,2]
[392877002,1762104675698,2754.07,0.00013948,2]
[392877003,1762104675843,2754.07,0.00014336,2]
[392877006,1762104721915,168.0,0.00014462,2]
[392877008,1762104725138,456.44,0.00014,2]
[392877009,1762104725176,500.0,0.00014,2]
[392877010,1762104725903,551.34,0.00014,2]
[392877012,1762104728581,168.0,0.00014462,2]
[392877026,1762104780876,500.0,0.00014443,2]
[392877028,1762104783666,231.15,0.00014088,2]
[392877035,1762104889771,320.26,0.00014048,2]
[392877036,1762104898998,1500.0,0.00014048,2]
[392877067,1762104972694,986.14273463,0.00014033,2]
[392877068,1762104972717,975.88726537,0.00014033,2]
[392877069,1762105002737,152.0,0.00014694,3]
[392877071,1762105038076,2917.5,0.00013999,2]
[392877076,1762105189289,2275.2,0.00029863,120]
[392877077,1762105189534,2275.2,0.00030136,120]
[392877078,1762105189626,500.0,0.00029863,120]
[392877079,1762105189892,500.0,0.00030136,120]
[392877080,1762105190659,561.33,0.00029863,120]
[392877081,1762105190761,561.33,0.00030136,120]
[392877082,1762105190812,500.0,0.00029863,120]
[392877083,1762105190898,511.48642758,0.00030136,120]
[392877084,1762105192281,500.0,0.00029863,120]
[392877085,1762105192400,500.0,0.00029863,120]
[392877086,1762105192512,500.0,0.00030136,120]
[392877087,1762105192642,352.6252967,0.00030136,120]
[392877088,1762105192703,566.65270951,0.00029863,120]
[392877089,1762105192884,500.0,0.00029863,120]
[392877090,1762105193254,500.0,0.00029863,120]
[392877091,1762105193294,511.52269868,0.00030136,120]
[392877092,1762105193471,249.93344166,0.00030136,120]
[392877093,1762105193567,500.0,0.00029863,120]
[392877094,1762105193806,500.0,0.00030136,120]
[392877095,1762105193898,500.0,0.00029863,120]
[392877096,1762105194141,500.0,0.00030136,120]
[392877097,1762105194622,500.0,0.00029863,120]
[392877098,1762105194819,500.0,0.00029863,120]
[392877099,1762105194849,500.0,0.00030136,120]
[392877100,1762105195059,178.75159975,0.00030136,120]
[392877101,1762105195090,500.0,0.00029863,120]
[392877102,1762105195326,500.0,0.00030136,120]
[392877103,1762105196075,500.0,0.00029863,120]
[392877104,1762105196311,500.0,0.00030136,120]
[392877105,1762105197292,500.0,0.00029863,120]
[392877106,1762105197564,500.0,0.00029863,120]
[392877107,1762105197698,518.91733545,0.00029863,120]
[392877108,1762105197729,500.0,0.00030136,120]
[392877109,1762105197769,500.0,0.00030136,120]
[392877110,1762105197798,500.0,0.00029863,120]
[392877111,1762105197831,619.56,0.00029863,120]
[392877112,1762105198001,500.0,0.00030136,120]
[392877113,1762105198033,500.0,0.00029863,120]
[392877114,1762105198064,619.56,0.00030136,120]
[392877115,1762105198262,542.10101397,0.00030136,120]
[392877116,1762105198407,500.0,0.00029863,120]
[392877117,1762105198495,500.0,0.00029863,120]
[392877118,1762105198645,500.0,0.00030136,120]
[392877119,1762105198717,500.0,0.00030136,120]
[392877120,1762105199170,500.0,0.00029863,120]
[392877121,1762105199409,390.27869351,0.00030136,120]
[392877122,1762105200230,709.08,0.00029863,120]
[392877123,1762105200320,500.0,0.00029863,120]
[392877124,1762105200472,309.99458299,0.00030136,120]
[392877125,1762105201341,709.08,0.00030136,120]
[392877126,1762105201380,500.0,0.00029863,120]
[392877127,1762105201412,500.0,0.00029863,120]
[392877128,1762105201445,500.0,0.00029863,120]
[392877129,1762105201490,504.47,0.00029863,120]
[392877130,1762105201523,500.0,0.00030136,120]
[392877131,1762105201552,500.0,0.00030136,120]
[392877132,1762105201583,536.03147134,0.00030136,120]
[392877133,1762105201650,504.47,0.00030136,120]
[392877135,1762105202283,500.0,0.00029863,120]
[392877136,1762105202610,500.0,0.00030136,120]
[392877137,1762105202941,517.6056396,0.00029863,120]
[392877138,1762105203142,532.09491862,0.00029863,120]
[392877139,1762105204660,1152.79,0.00029863,120]
[392877140,1762105204908,500.0,0.00029863,120]
[392877141,1762105204948,1152.79,0.00030136,120]
[392877142,1762105205154,500.0,0.00030136,120]
[392877143,1762105205196,500.0,0.00029863,120]
[392877144,1762105205492,500.0,0.00030136,120]
[392877145,1762105207135,500.0,0.00029863,120]
[392877146,1762105207234,500.0,0.00029863,120]
[392877148,1762105207387,500.0,0.00030136,120]
[392877149,1762105207478,500.0,0.00030136,120]
[392877150,1762105207673,500.0,0.00029863,120]
[392877151,1762105207791,500.0,0.00029863,120]
[392877152,1762105207925,506.44814359,0.00030136,120]
[392877153,1762105208032,500.0,0.00029863,120]
[392877154,1762105208065,584.10493252,0.00030136,120]
[392877155,1762105208364,529.99254546,0.00029863,120]
[392877156,1762105208435,500.0,0.00030136,120]
[392877157,1762105208512,500.0,0.00029863,120]
[392877158,1762105208758,502.69748127,0.00029863,120]
[392877159,1762105208792,500.0,0.00030136,120]
[392877160,1762105210159,500.0,0.00029863,120]
[392877161,1762105210378,500.0,0.00030136,120]
[392877162,1762105210762,500.0,0.00029863,120]
[392877163,1762105210946,500.0,0.00029863,120]
[392877164,1762105210991,500.0,0.00030136,120]
[392877165,1762105211191,500.0,0.00030136,120]
[392877166,1762105211832,512.79598153,0.00029863,120]
[392877167,1762105211946,500.0,0.00029863,120]
[392877168,1762105212025,500.0,0.00030136,120]
[392877170,1762105214535,500.0,0.00029863,120]
[392877171,1762105214567,500.0,0.00029863,120]
[392877172,1762105214782,500.0,0.00030136,120]
[392877173,1762105214812,500.0,0.00030136,120]
[392877174,1762105215609,521.03540577,0.00029863,120]
[392877175,1762105215955,500.0,0.00029863,120]
[392877176,1762105216180,500.0,0.00029863,120]
[392877177,1762105216213,500.0,0.00030136,120]
[392877178,1762105216370,500.0,0.00029863,120]
[392877179,1762105216722,500.0,0.00030136,120]
[392877180,1762105216785,500.0,0.00029863,120]
[392877181,1762105216819,500.0,0.00030136,120]
[392877182,1762105216899,500.0,0.00030136,120]
[392877183,1762105217393,2315.1,0.00029863,120]
[392877184,1762105217547,500.0,0.00029863,120]
[392877185,1762105217600,2315.1,0.00030136,120]
[392877186,1762105217771,500.0,0.00029863,120]
[392877187,1762105217803,500.0,0.00029863,120]
[392877188,1762105217844,500.0,0.00030136,120]
[392877189,1762105218026,500.0,0.00030136,120]
[392877190,1762105218078,500.0,0.00030136,120]
[392877191,1762105218630,500.0,0.00029863,120]
[392877192,1762105218860,500.0,0.00030136,120]
[392877193,1762105219112,500.0,0.00029863,120]
[392877194,1762105219174,526.99293466,0.00029863,120]
[392877195,1762105219373,500.0,0.00030136,120]
[392877196,1762105219462,1005.23,0.00029863,120]
[392877197,1762105219495,500.0,0.00029863,120]
[392877198,1762105219689,1005.23,0.00030136,120]
[392877199,1762105219731,500.0,0.00030136,120]
[392877200,1762105219781,567.42,0.00029863,120]
[392877201,1762105220014,567.42,0.00030136,120]
[392877202,1762105221134,699.57,0.00029863,120]
[392877203,1762105221204,500.0,0.00029863,120]
[392877204,1762105221239,500.0,0.00029863,120]
[392877205,1762105221314,699.57,0.00030136,120]
[392877206,1762105221347,500.0,0.00029863,120]
[392877207,1762105221530,500.0,0.00029863,120]
[392877208,1762105221578,500.0,0.00030136,120]
[392877209,1762105221610,428.38804373,0.00030136,120]
[392877210,1762105221781,500.0,0.00030136,120]
[392877212,1762105223271,500.0,0.00030136,120]
[392877213,1762105223336,500.0,0.00029863,120]
[392877214,1762105223615,500.0,0.00030136,120]
[392877215,1762105224470,619.9920027,0.00029863,120]
[392877216,1762105225618,500.0,0.00029863,120]
[392877217,1762105225865,450.17021974,0.00030136,120]
[392877218,1762105225903,500.0,0.00029863,120]
[392877219,1762105226154,180.0372273,0.00030136,120]
[392877220,1762105227444,825.56,0.00029863,120]
[392877221,1762105227686,825.56,0.00030136,120]
[392877222,1762105227720,500.0,0.00029863,120]
[392877223,1762105227833,500.0,0.00029863,120]
[392877224,1762105227922,500.0,0.00029863,120]
[392877225,1762105227954,500.0,0.00030136,120]
[392877226,1762105227990,328.1999625,0.00029863,120]
[392877227,1762105228025,500.0,0.00029863,120]
[392877228,1762105228077,500.0,0.00030136,120]
[392877229,1762105228164,500.0,0.00030136,120]
[392877230,1762105228251,500.0,0.00029863,120]
[392877231,1762105228331,500.0,0.00030136,120]
[392877232,1762105228515,500.0,0.00030136,120]
[392877233,1762105228599,500.0,0.00029863,120]
[392877234,1762105228835,500.0,0.00030136,120]
[392877235,1762105229371,540.31,0.00029863,120]
[392877236,1762105229443,540.31,0.00030136,120]
[392877237,1762105229499,500.0,0.00029863,120]
[392877238,1762105229532,500.0,0.00029863,120]
[392877239,1762105229595,500.0,0.00030136,120]
[392877240,1762105229626,552.26,0.00030136,120]
[392877241,1762105231584,500.0,0.00029863,120]
[392877242,1762105231615,500.0,0.00029863,120]
[392877243,1762105231744,500.0,0.00029863,120]
[392877244,1762105231825,500.0,0.00030136,120]
[392877245,1762105231864,500.0,0.00030136,120]
[392877246,1762105231894,515.167884,0.00029863,120]
[392877247,1762105231932,500.0,0.00029863,120]
[392877248,1762105232016,500.0,0.00029863,120]
[392877249,1762105232049,500.0,0.00030136,120]
[392877250,1762105232246,500.0,0.00030136,120]
[392877251,1762105232291,500.0,0.00030136,120]
[392877252,1762105232338,500.0,0.00029863,120]
[392877253,1762105232531,500.0,0.00030136,120]
[392877254,1762105233093,521.67431952,0.00029863,120]
[392877255,1762105233214,500.0,0.00029863,120]
[392877256,1762105233310,500.0,0.00030136,120]
[392877257,1762105233784,500.0,0.00029863,120]
[392877258,1762105234472,500.0,0.00030136,120]
[392877259,1762105235173,500.0,0.00029863,120]
[392877260,1762105235309,500.0,0.00029863,120]
[392877261,1762105235422,500.0,0.00030136,120]
[392877262,1762105235550,500.0,0.00030136,120]
[392877263,1762105235580,500.0,0.00029863,120]
[392877264,1762105235807,500.0,0.00030136,120]
[392877265,1762105236194,500.0,0.00029863,120]
[392877266,1762105236311,500.0,0.00029863,120]
[392877267,1762105236454,500.0,0.00030136,120]
[392877268,1762105236552,500.0,0.00030136,120]
[392877269,1762105236792,500.0,0.00029863,120]
[392877270,1762105236884,500.0,0.00029863,120]
[392877271,1762105237029,500.0,0.00030136,120]
[392877272,1762105237130,500.0,0.00030136,120]
[392877273,1762105237740,1083.52,0.00029863,120]
[392877274,1762105238037,1083.52,0.00030136,120]
[392877275,1762105238248,576.15,0.00029863,120]
[392877276,1762105238341,500.0,0.00029863,120]
[392877277,1762105238496,576.15,0.00030136,120]
[392877278,1762105239319,500.0,0.00029863,120]
[392877279,1762105239550,500.0,0.00029863,120]
[392877280,1762105239586,500.0,0.00030136,120]
[392877281,1762105239799,500.0,0.00030136,120]
[392877282,1762105239928,500.0,0.00029863,120]
[392877283,1762105240180,500.0,0.00030136,120]
[392877284,1762105240462,503.75502704,0.00029863,120]
[392877285,1762105240823,500.0,0.00029863,120]
[392877286,1762105241183,500.0,0.00030136,120]
[392877287,1762105241283,509.32657431,0.00029863,120]
[392877288,1762105241699,500.0,0.00029863,120]
[392877289,1762105241880,500.0,0.00029863,120]
[392877290,1762105241934,500.0,0.00030136,120]
[392877291,1762105242139,500.0,0.00030136,120]
[392877292,1762105242270,513.81642599,0.00029863,120]
[392877293,1762105242338,500.0,0.00029863,120]
[392877294,1762105242476,500.0,0.00029863,120]
[392877295,1762105242600,519.15885752,0.00030136,120]
[392877296,1762105242639,500.0,0.00029863,120]
[392877297,1762105242674,2076.36,0.00029863,120]
[392877298,1762105242710,500.0,0.00030136,120]
[392877299,1762105242872,500.0,0.00030136,120]
[392877300,1762105242907,2076.36,0.00030136,120]
[392877301,1762105243720,500.0,0.00029863,120]
[392877302,1762105243818,500.0,0.00030136,120]
[392877303,1762105244103,257.36254945,0.00029863,120]
[392877304,1762105244631,500.0,0.00029863,120]
[392877305,1762105245118,500.0,0.00030136,120]
[392877306,1762105245171,500.0,0.00029863,120]
[392877307,1762105245412,512.65400558,0.00030136,120]
[392877308,1762105245667,500.0,0.00029863,120]
[392877309,1762105245930,500.0,0.00030136,120]
[392877310,1762105245995,520.73437976,0.00029863,120]
[392877311,1762105246029,500.0,0.00029863,120]
[392877312,1762105246296,156.9927123,0.00030136,120]
[392877313,1762105246712,524.86433043,0.00029863,120]
[392877314,1762105246822,500.0,0.00029863,120]
[392877315,1762105246999,500.0,0.00030136,120]
[392877316,1762105247149,500.0,0.00029863,120]
[392877317,1762105247389,500.0,0.00030136,120]
[392877318,1762105247615,500.0,0.00029863,120]
[392877319,1762105247683,500.0,0.00029863,120]
[392877320,1762105247851,500.0,0.00030136,120]
[392877321,1762105247881,519.53031832,0.00029863,120]
[392877322,1762105247948,500.0,0.00030136,120]
[392877323,1762105248284,518.76567502,0.00029863,120]
[392877324,1762105248396,500.0,0.00029863,120]
[392877325,1762105248560,500.0,0.00029863,120]
[392877326,1762105248638,500.0,0.00030136,120]
[392877327,1762105248805,285.65979213,0.00030136,120]
[392877328,1762105249705,500.0,0.00029863,120]
[392877329,1762105249972,500.0,0.00029863,120]
[392877330,1762105250018,495.43484402,0.00030136,120]
[392877331,1762105250169,500.0,0.00030136,120]
[392877332,1762105250352,500.0,0.00029863,120]
[392877333,1762105250579,500.0,0.00030136,120]
[392877334,1762105250709,500.0,0.00029863,120]
[392877335,1762105250820,500.0,0.00029863,120]
[392877336,1762105250936,500.0,0.00029863,120]
[392877337,1762105250981,500.0,0.00030136,120]
[392877338,1762105251054,500.0,0.00030136,120]
[392877339,1762105251215,500.0,0.00030136,120]
[392877340,1762105251492,500.0,0.00029863,120]
[392877341,1762105251716,575.57859284,0.00030136,120]
[392877342,1762105252007,2008.79,0.00029863,120]
[392877343,1762105252249,2008.79,0.00030136,120]
[392877344,1762105252782,507.14837899,0.00029863,120]
[392877345,1762105254381,514.60352915,0.00029863,120]
[392877346,1762105254901,500.0,0.00029863,120]
[392877347,1762105254933,217.43579787,0.00029863,120]
[392877348,1762105255164,500.0,0.00030136,120]
[392877349,1762105255234,500.0,0.00029863,120]